[Event "Snabb-SM för veteraner, 50+ 2019"]
[Site "Schackcentrum, Vegagatan 20, Gothenburg, Sweden"]
[Date "2019.10.06"]
[Round "9.3"]
[White "Svenn, Matti"]
[Black "Andersson, Johan"]
[Result "1-0"]
[TimeControl "15 minutes + 10 seconds per move from move one"]
[WhiteFideId "1705091"]
[BlackFideId "1703935"]
[WhiteElo "2195"]
[BlackElo "2152"]

1. e4 {[%clk 00:15:19]} d6 {[%clk 00:15:18]} {[%emt 00:00:03]} 2. d4 {[%clk
00:15:27]} {[%emt 00:00:02]} Nf6 {[%clk 00:15:26]} {[%emt 00:00:02]} 3. Nc3
{[%clk 00:15:35]} {[%emt 00:00:03]} c6 {[%clk 00:15:35]} {[%emt 00:00:01]} 4.
h3 {[%clk 00:15:29]} {[%emt 00:00:15]} e5 {[%clk 00:15:35]} {[%emt 00:00:10]} 5.
Nf3 {[%clk 00:15:38]} {[%emt 00:00:01]} Qc7 {[%clk 00:15:27]} {[%emt 00:00:18]}
6. a4 {[%clk 00:15:40]} {[%emt 00:00:08]} b6 {[%clk 00:15:16]} {[%emt
00:00:21]} 7. Bc4 {[%clk 00:15:36]} {[%emt 00:00:14]} Be7 {[%clk 00:15:15]}
{[%emt 00:00:12]} 8. O-O {[%clk 00:15:44]} {[%emt 00:00:02]} O-O {[%clk
00:15:14]} {[%emt 00:00:11]} 9. Be3 {[%clk 00:15:32]} {[%emt 00:00:22]} Nbd7
{[%clk 00:15:03]} {[%emt 00:00:22]} 10. Qe2 {[%clk 00:15:00]} {[%emt 00:00:42]}
Bb7 {[%clk 00:14:39]} {[%emt 00:00:33]} 11. Rfe1 {[%clk 00:14:15]} {[%emt
00:00:55]} a6 {[%clk 00:14:37]} {[%emt 00:00:13]} 12. Ba2 {[%clk 00:13:56]}
{[%emt 00:00:28]} b5 {[%clk 00:14:06]} {[%emt 00:00:42]} 13. d5 {[%clk
00:11:17]} {[%emt 00:02:50]} b4 {[%clk 00:08:44]} {[%emt 00:05:32]} 14. dxc6
{[%clk 00:11:24]} {[%emt 00:00:02]} Bxc6 {[%clk 00:08:52]} {[%emt 00:00:02]} 15.
Nd5 {[%clk 00:11:29]} {[%emt 00:00:06]} Nxd5 {[%clk 00:08:35]} {[%emt
00:00:27]} 16. Bxd5 {[%clk 00:11:26]} {[%emt 00:00:13]} Bxd5 {[%clk 00:07:43]}
{[%emt 00:01:02]} 17. exd5 {[%clk 00:11:34]} {[%emt 00:00:02]} f5 {[%clk
00:07:04]} {[%emt 00:00:49]} 18. Bg5 {[%clk 00:10:59]} {[%emt 00:00:44]} Nf6
{[%clk 00:06:33]} {[%emt 00:00:41]} 19. Nd4 {[%clk 00:07:59]} {[%emt 00:03:11]}
exd4 {[%clk 00:05:04]} {[%emt 00:01:39]} 20. Qxe7 {[%clk 00:08:07]} {[%emt
00:00:02]} Qxe7 {[%clk 00:02:55]} {[%emt 00:02:19]} 21. Rxe7 {[%clk 00:08:15]}
{[%emt 00:00:02]} Nxd5 {[%clk 00:01:47]} {[%emt 00:01:18]} 22. Rd7 {[%clk
00:08:23]} {[%emt 00:00:01]} h6 {[%clk 00:01:45]} {[%emt 00:00:12]} 23. Rxd6
{[%clk 00:08:32]} {[%emt 00:00:01]} hxg5 {[%clk 00:01:47]} {[%emt 00:00:09]} 24.
Rxd5 {[%clk 00:08:40]} {[%emt 00:00:01]} Rad8 {[%clk 00:01:53]} {[%emt
00:00:04]} 25. Rxd8 {[%clk 00:06:32]} {[%emt 00:02:19]} Rxd8 {[%clk 00:02:02]}
26. Rd1 {[%clk 00:06:40]} a5 {[%clk 00:01:38]} {[%emt 00:00:35]} 27. Kf1 {[%clk
00:06:47]} {[%emt 00:00:02]} Kf7 {[%clk 00:01:17]} {[%emt 00:00:31]} 28. Ke2
{[%clk 00:06:46]} {[%emt 00:00:11]} Kf6 {[%clk 00:01:16]} {[%emt 00:00:11]} 29.
Kd3 {[%clk 00:06:48]} {[%emt 00:00:08]} Re8 {[%clk 00:00:56]} {[%emt 00:00:30]}
30. Rd2 {[%clk 00:06:36]} {[%emt 00:00:23]} Re4 {[%clk 00:00:37]} {[%emt
00:00:28]} 31. Kc4 {[%clk 00:06:21]} {[%emt 00:00:25]} Ke6 {[%clk 00:00:32]}
{[%emt 00:00:15]} 32. g3 {[%clk 00:01:16]} {[%emt 00:05:14]} Ke5 {[%clk
00:00:29]} {[%emt 00:00:14]} 33. Kb5 {[%clk 00:01:21]} {[%emt 00:00:05]} f4
{[%clk 00:00:25]} {[%emt 00:00:14]} 34. gxf4 {[%clk 00:00:44]} {[%emt
00:00:47]} Kxf4 {[%clk 00:00:34]} {[%emt 00:00:01]} 35. Kxa5 {[%clk 00:00:53]}
{[%emt 00:00:02]} Kf3 {[%clk 00:00:23]} {[%emt 00:00:20]} 36. Kxb4 {[%clk
00:00:35]} {[%emt 00:00:28]} 1-0

[Event "Snabb-SM för veteraner, 50+ 2019"]
[Site "Schackcentrum, Vegagatan 20, Gothenburg, Sweden"]
[Date "2019.10.06"]
[Round "9.4"]
[White "Eriksson, Kristian"]
[Black "Naslund, Mikael"]
[Result "1-0"]
[TimeControl "15 minutes + 10 seconds per move from move one"]
[BlackTitle "FM"]
[WhiteFideId "1705172"]
[BlackFideId "1708260"]
[WhiteElo "2025"]
[BlackElo "2076"]

1. e4 {[%clk 00:15:18]} {[%emt 00:00:02]} c5 {[%clk 00:15:20]} 2. Nf3 {[%clk
00:15:25]} {[%emt 00:00:04]} Nc6 {[%clk 00:15:29]} {[%emt 00:00:02]} 3. d4
{[%clk 00:15:31]} {[%emt 00:00:03]} cxd4 {[%clk 00:15:37]} {[%emt 00:00:02]} 4.
Nxd4 {[%clk 00:15:39]} {[%emt 00:00:03]} Qb6 {[%clk 00:15:45]} {[%emt
00:00:02]} 5. Nb3 {[%clk 00:15:39]} {[%emt 00:00:09]} Nf6 {[%clk 00:15:53]}
{[%emt 00:00:02]} 6. Nc3 {[%clk 00:15:43]} {[%emt 00:00:06]} e6 {[%clk
00:16:01]} {[%emt 00:00:02]} 7. a3 {[%clk 00:15:18]} {[%emt 00:00:36]} Qc7
{[%clk 00:15:31]} {[%emt 00:00:40]} 8. f4 {[%clk 00:14:52]} {[%emt 00:00:35]}
d6 {[%clk 00:15:06]} {[%emt 00:00:35]} 9. Bd3 {[%clk 00:14:55]} {[%emt
00:00:07]} Be7 {[%clk 00:14:56]} {[%emt 00:00:21]} 10. O-O {[%clk 00:14:55]}
{[%emt 00:00:09]} a6 {[%clk 00:14:45]} {[%emt 00:00:21]} 11. Qf3 {[%clk
00:14:44]} {[%emt 00:00:21]} O-O {[%clk 00:14:24]} {[%emt 00:00:31]} 12. Bd2
{[%clk 00:14:43]} {[%emt 00:00:11]} Rb8 {[%clk 00:13:29]} {[%emt 00:01:06]} 13.
Rae1 {[%clk 00:14:48]} {[%emt 00:00:04]} b5 {[%clk 00:11:00]} {[%emt 00:02:39]}
14. Kh1 {[%clk 00:14:34]} {[%emt 00:00:24]} b4 {[%clk 00:10:59]} {[%emt
00:00:11]} 15. axb4 {[%clk 00:13:32]} {[%emt 00:01:12]} Nxb4 {[%clk 00:11:07]}
{[%emt 00:00:02]} 16. e5 {[%clk 00:11:17]} {[%emt 00:02:25]} Nxd3 {[%clk
00:10:55]} {[%emt 00:00:22]} 17. Qxd3 {[%clk 00:11:07]} {[%emt 00:00:20]} dxe5
{[%clk 00:10:17]} {[%emt 00:00:49]} 18. fxe5 {[%clk 00:11:13]} {[%emt
00:00:03]} Nd7 {[%clk 00:10:04]} {[%emt 00:00:23]} 19. Qg3 {[%clk 00:10:51]}
{[%emt 00:00:32]} Kh8 {[%clk 00:09:50]} {[%emt 00:00:25]} 20. Bg5 {[%clk
00:07:42]} {[%emt 00:03:19]} Bb4 {[%clk 00:08:24]} {[%emt 00:01:35]} 21. Re4
{[%clk 00:06:54]} {[%emt 00:00:58]} f5 {[%clk 00:06:47]} {[%emt 00:01:48]} 22.
Rh4 {[%clk 00:04:35]} {[%emt 00:02:28]} Rf7 {[%clk 00:05:03]} {[%emt 00:01:55]}
23. Nd4 {[%clk 00:03:17]} {[%emt 00:01:28]} Nxe5 {[%clk 00:03:31]} {[%emt
00:01:41]} 24. Bf4 {[%clk 00:02:52]} {[%emt 00:00:35]} Bd6 {[%clk 00:03:35]}
{[%emt 00:00:07]} 25. Re1 {[%clk 00:02:41]} {[%emt 00:00:22]} Nc4 {[%clk
00:02:01]} {[%emt 00:01:43]} 26. Nxe6 {[%clk 00:02:22]} {[%emt 00:00:29]} Bxe6
{[%clk 00:01:54]} {[%emt 00:00:17]} 27. Rxe6 {[%clk 00:02:29]} {[%emt
00:00:03]} Bxf4 {[%clk 00:01:29]} {[%emt 00:00:34]} 28. Rxf4 {[%clk 00:02:33]}
{[%emt 00:00:07]} Rff8 {[%clk 00:00:39]} {[%emt 00:00:59]} 29. Nd5 {[%clk
00:01:30]} {[%emt 00:01:14]} Qd7 {[%clk 00:00:48]} {[%emt 00:00:02]} 30. Re7
{[%clk 00:01:22]} {[%emt 00:00:17]} Qxe7 {[%clk 00:00:30]} {[%emt 00:00:28]} 31.
Nxe7 {[%clk 00:01:30]} {[%emt 00:00:02]} Rxb2 {[%clk 00:00:39]} {[%emt
00:00:02]} 32. h3 {[%clk 00:01:25]} {[%emt 00:00:14]} Nd6 {[%clk 00:00:46]}
{[%emt 00:00:03]} 33. Qc3 {[%clk 00:01:23]} {[%emt 00:00:12]} Rb1+ {[%clk
00:00:52]} {[%emt 00:00:04]} 34. Kh2 {[%clk 00:01:31]} Ne4 {[%clk 00:00:55]}
{[%emt 00:00:08]} 35. Rxf5 {[%clk 00:01:23]} {[%emt 00:00:18]} 1-0

[Event "Snabb-SM för veteraner, 50+ 2019"]
[Site "Schackcentrum, Vegagatan 20, Gothenburg, Sweden"]
[Date "2019.10.06"]
[Round "9.5"]
[White "Andreasson, Ingvar"]
[Black "Gamback, Bjorn"]
[Result "1-0"]
[TimeControl "15 minutes + 10 seconds per move from move one"]
[BlackTitle "CM"]
[WhiteFideId "1700294"]
[BlackFideId "1703161"]
[WhiteElo "2413"]
[BlackElo "2120"]

1. b3 {[%clk 00:15:17]} {[%emt 00:00:02]} e5 {[%clk 00:15:02]} {[%emt
00:00:19]} 2. Bb2 {[%emt 00:00:04]} d6 {[%clk 00:15:09]} 3. e3 {[%clk
00:15:32]} {[%emt 00:00:02]} f5 {[%clk 00:15:15]} {[%emt 00:00:04]} 4. d4
{[%clk 00:15:37]} {[%emt 00:00:05]} Nc6 {[%clk 00:15:21]} {[%emt 00:00:05]} 5.
Bb5 {[%clk 00:15:30]} {[%emt 00:00:17]} Bd7 {[%clk 00:15:08]} {[%emt 00:00:22]}
6. Ne2 {[%clk 00:14:49]} {[%emt 00:00:50]} Nf6 {[%clk 00:15:04]} {[%emt
00:00:16]} 7. O-O {[%clk 00:14:49]} {[%emt 00:00:10]} Be7 {[%clk 00:14:59]}
{[%emt 00:00:15]} 8. Bxc6 {[%clk 00:14:41]} {[%emt 00:00:18]} Bxc6 {[%clk
00:15:04]} {[%emt 00:00:05]} 9. dxe5 {[%clk 00:14:49]} {[%emt 00:00:01]} dxe5
{[%clk 00:15:09]} {[%emt 00:00:05]} 10. Bxe5 {[%clk 00:14:44]} {[%emt
00:00:13]} Be4 {[%clk 00:13:58]} {[%emt 00:01:23]} 11. Nbc3 {[%clk 00:13:31]}
{[%emt 00:01:24]} O-O {[%clk 00:12:13]} {[%emt 00:01:57]} 12. f3 {[%clk
00:13:30]} {[%emt 00:00:09]} Bc6 {[%clk 00:12:12]} {[%emt 00:00:11]} 13. Nd4
{[%clk 00:12:45]} {[%emt 00:00:55]} Qd7 {[%clk 00:11:37]} {[%emt 00:00:46]} 14.
Qe2 {[%clk 00:12:42]} {[%emt 00:00:12]} Bd6 {[%emt 00:03:29]} 15. Bxd6 {[%clk
00:11:04]} {[%emt 00:01:48]} Qxd6 {[%clk 00:08:28]} {[%emt 00:00:02]} 16. Qc4+
{[%clk 00:08:35]} {[%emt 00:02:38]} Kh8 {[%clk 00:08:38]} 17. Nxf5 {[%clk
00:08:43]} {[%emt 00:00:03]} Qe5 {[%clk 00:08:36]} {[%emt 00:00:11]} 18. e4
{[%clk 00:07:27]} {[%emt 00:01:27]} Rad8 {[%clk 00:08:29]} {[%emt 00:00:17]} 19.
Rad1 {[%clk 00:06:59]} {[%emt 00:00:36]} Bd7 {[%clk 00:06:44]} {[%emt
00:01:56]} 20. Qd4 {[%clk 00:05:37]} {[%emt 00:01:31]} Qa5 {[%clk 00:06:27]}
{[%emt 00:00:30]} 21. b4 {[%clk 00:03:01]} {[%emt 00:02:46]} Qa3 {[%clk
00:06:35]} 22. Qc4 {[%clk 00:02:54]} {[%emt 00:00:17]} Bxf5 {[%clk 00:05:03]}
{[%emt 00:01:43]} 23. exf5 {[%emt 00:00:02]} c6 24. Ne4 {[%clk 00:01:18]}
{[%emt 00:01:53]} Qe3+ {[%clk 00:05:04]} {[%emt 00:00:19]} 25. Kh1 {[%clk
00:00:48]} {[%emt 00:00:39]} Nd5 {[%clk 00:05:12]} {[%emt 00:00:02]} 26. Qb3
{[%clk 00:00:43]} {[%emt 00:00:15]} Qxb3 {[%clk 00:03:44]} {[%emt 00:01:38]} 27.
cxb3 {[%clk 00:00:39]} {[%emt 00:00:13]} Ne3 {[%clk 00:03:53]} {[%emt
00:00:02]} 28. Rxd8 {[%clk 00:00:35]} {[%emt 00:00:15]} Rxd8 {[%clk 00:04:02]}
29. Re1 {[%clk 00:00:24]} {[%emt 00:00:19]} Nxf5 {[%clk 00:04:11]} {[%emt
00:00:03]} 30. Kg1 {[%clk 00:00:32]} {[%emt 00:00:02]} Kg8 {[%clk 00:04:02]}
{[%emt 00:00:19]} 31. Re2 {[%clk 00:00:40]} {[%emt 00:00:02]} Rd4 {[%clk
00:04:06]} {[%emt 00:00:06]} 32. Rd2 {[%clk 00:00:29]} {[%emt 00:00:21]} Rxb4
{[%clk 00:04:05]} {[%emt 00:00:12]} 33. Rd7 {[%clk 00:00:37]} {[%emt 00:00:01]}
a5 {[%clk 00:04:01]} {[%emt 00:00:15]} 34. Nc5 {[%clk 00:00:46]} b5 {[%clk
00:03:22]} {[%emt 00:00:49]} 35. Kf2 {[%clk 00:00:32]} {[%emt 00:00:24]} a4
{[%clk 00:03:10]} {[%emt 00:00:23]} 36. a3 {[%clk 00:00:20]} {[%emt 00:00:22]}
Rd4 {[%clk 00:03:06]} {[%emt 00:00:13]} 37. Rxd4 {[%clk 00:00:17]} {[%emt
00:00:13]} Nxd4 {[%clk 00:03:16]} 38. bxa4 {[%clk 00:00:26]} bxa4 {[%clk
00:03:25]} 39. Nxa4 {[%clk 00:00:35]} {[%emt 00:00:01]} Nc2 {[%clk 00:03:34]}
40. Ke2 {[%clk 00:00:37]} {[%emt 00:00:08]} Nxa3 {[%clk 00:03:43]} {[%emt
00:00:02]} 41. Kd3 {[%clk 00:00:46]} Kf7 {[%clk 00:03:41]} {[%emt 00:00:11]} 42.
Kd4 {[%clk 00:00:37]} {[%emt 00:00:19]} Ke7 {[%clk 00:03:49]} {[%emt 00:00:02]}
43. Nc5 {[%clk 00:00:44]} {[%emt 00:00:04]} Kd6 {[%clk 00:03:52]} {[%emt
00:00:07]} 44. Ne4+ {[%clk 00:00:52]} {[%emt 00:00:02]} Kd7 {[%clk 00:03:56]}
{[%emt 00:00:06]} 45. Ke5 {[%clk 00:01:00]} Nc4+ {[%clk 00:04:02]} {[%emt
00:00:04]} 46. Kd4 {[%clk 00:01:08]} {[%emt 00:00:02]} Nb6 {[%clk 00:03:50]}
{[%emt 00:00:22]} 47. g4 {[%clk 00:01:11]} {[%emt 00:00:07]} Nd5 {[%clk
00:03:54]} {[%emt 00:00:06]} 48. Ke5 {[%clk 00:01:17]} {[%emt 00:00:04]} Ke7
{[%clk 00:03:46]} {[%emt 00:00:18]} 49. h4 {[%clk 00:01:11]} {[%emt 00:00:17]}
Ne3 {[%clk 00:03:45]} {[%emt 00:00:10]} 50. h5 {[%clk 00:01:13]} {[%emt
00:00:08]} h6 {[%clk 00:03:40]} {[%emt 00:00:16]} 51. Nc5 {[%clk 00:00:57]}
{[%emt 00:00:26]} Nc4+ {[%clk 00:03:07]} {[%emt 00:00:42]} 52. Kd4 {[%clk
00:01:04]} {[%emt 00:00:02]} Nd6 {[%clk 00:03:09]} {[%emt 00:00:07]} 53. f4
{[%clk 00:01:07]} {[%emt 00:00:09]} Kf6 {[%clk 00:03:01]} {[%emt 00:00:18]} 54.
Nd7+ {[%clk 00:00:48]} {[%emt 00:00:29]} Ke7 {[%clk 00:03:04]} {[%emt
00:00:07]} 55. Ne5 {[%clk 00:00:57]} {[%emt 00:00:01]} Nb5+ {[%clk 00:02:39]}
{[%emt 00:00:35]} 56. Kc5 {[%clk 00:01:06]} Nc7 {[%clk 00:02:48]} {[%emt
00:00:01]} 57. Nxc6+ {[%emt 00:00:06]} Kf6 58. Kd4 {[%clk 00:01:14]} {[%emt
00:00:04]} Ne6+ {[%clk 00:03:05]} {[%emt 00:00:03]} 59. Ke4 {[%emt 00:00:03]}
Nc5+ 60. Ke3 {[%clk 00:01:15]} {[%emt 00:00:17]} Nd7 {[%clk 00:02:56]} {[%emt
00:00:29]} 61. Nb4 {[%clk 00:01:16]} {[%emt 00:00:08]} Nf8 {[%clk 00:03:01]}
{[%emt 00:00:06]} 62. Nd5+ {[%clk 00:01:17]} {[%emt 00:00:09]} Ke6 {[%clk
00:03:07]} {[%emt 00:00:03]} 63. Kd4 {[%clk 00:01:19]} {[%emt 00:00:08]} Nd7
{[%clk 00:03:08]} {[%emt 00:00:09]} 64. Nc7+ {[%clk 00:01:09]} {[%emt
00:00:20]} Ke7 {[%clk 00:03:11]} {[%emt 00:00:08]} 65. Ke4 {[%clk 00:01:14]}
{[%emt 00:00:06]} Kf7 {[%clk 00:02:47]} {[%emt 00:00:34]} 66. Kf5 {[%clk
00:01:17]} {[%emt 00:00:06]} Nc5 {[%emt 00:00:08]} 67. Nb5 {[%emt 00:00:04]}
Nd3 {[%clk 00:02:37]} {[%emt 00:00:08]} 68. Nc3 {[%clk 00:01:11]} {[%emt
00:00:16]} Nb4 {[%clk 00:02:34]} {[%emt 00:00:13]} 69. Nd1 {[%clk 00:01:11]}
{[%emt 00:00:09]} Nd5 {[%clk 00:02:39]} {[%emt 00:00:06]} 70. Nf2 {[%clk
00:01:08]} {[%emt 00:00:12]} Ke7 {[%clk 00:02:29]} {[%emt 00:00:21]} 71. Ke4
{[%clk 00:01:13]} {[%emt 00:00:05]} Nf6+ {[%clk 00:02:36]} {[%emt 00:00:03]} 72.
Ke5 {[%clk 00:01:22]} Nd7+ {[%clk 00:02:42]} {[%emt 00:00:03]} 73. Kf5 {[%clk
00:01:31]} Kf7 {[%clk 00:02:50]} {[%emt 00:00:02]} 74. Nd3 {[%clk 00:01:37]}
{[%emt 00:00:04]} Nf8 {[%clk 00:02:53]} {[%emt 00:00:08]} 75. Ne5+ {[%clk
00:01:39]} {[%emt 00:00:08]} Ke7 {[%clk 00:03:02]} 76. Ng6+ {[%clk 00:01:46]}
{[%emt 00:00:03]} Kf7 {[%clk 00:02:54]} {[%emt 00:00:19]} 77. Nxf8 Kxf8 {[%clk
00:03:03]} 78. Ke6 {[%clk 00:01:58]} {[%emt 00:00:05]} Ke8 {[%clk 00:03:12]}
{[%emt 00:00:01]} 79. f5 {[%clk 00:02:03]} {[%emt 00:00:06]} Kf8 {[%clk
00:03:21]} 80. f6 {[%clk 00:02:11]} {[%emt 00:00:01]} Kg8 {[%clk 00:03:22]}
{[%emt 00:00:10]} 81. Ke7 {[%clk 00:02:18]} {[%emt 00:00:03]} gxf6 {[%clk
00:03:23]} {[%emt 00:00:09]} 82. Kxf6 {[%clk 00:02:26]} Kh7 {[%clk 00:03:32]}
{[%emt 00:00:01]} 83. Kf7 {[%clk 00:02:36]} Kh8 {[%clk 00:03:41]} 84. Kg6
{[%clk 00:02:45]} {[%emt 00:00:02]} Kg8 {[%clk 00:03:51]} 85. Kxh6 {[%emt
00:00:02]} Kf7 86. Kg5 {[%clk 00:03:00]} {[%emt 00:00:03]} Kg7 {[%clk
00:04:10]} 87. Kf5 {[%clk 00:03:09]} Kh6 {[%clk 00:04:20]} 88. Kf6 {[%clk
00:03:16]} {[%emt 00:00:02]} Kh7 {[%clk 00:04:29]} {[%emt 00:00:01]} 89. g5
{[%clk 00:03:22]} {[%emt 00:00:05]} Kg8 {[%clk 00:04:38]} 90. g6 {[%clk
00:03:19]} {[%emt 00:00:13]} Kh8 {[%clk 00:04:47]} 91. g7+ {[%clk 00:03:24]}
{[%emt 00:00:05]} Kg8 {[%clk 00:04:56]} {[%emt 00:00:01]} 92. h6 {[%clk
00:03:33]} {[%emt 00:00:01]} Kh7 {[%clk 00:05:05]} {[%emt 00:00:02]} 93. Kf7
{[%clk 00:03:41]} {[%emt 00:00:01]} Kxh6 {[%clk 00:05:14]} 94. g8=R {[%clk
00:03:44]} {[%emt 00:00:08]} Kh5 {[%clk 00:05:23]} {[%emt 00:00:02]} 95. Kf6
{[%clk 00:03:51]} {[%emt 00:00:03]} Kh4 {[%clk 00:05:32]} 96. Kf5 {[%clk
00:03:59]} Kh3 {[%clk 00:05:42]} {[%emt 00:00:01]} 97. Kf4 {[%clk 00:04:07]}
{[%emt 00:00:01]} Kh2 {[%clk 00:05:51]} {[%emt 00:00:02]} 98. Kf3 {[%clk
00:04:15]} {[%emt 00:00:01]} Kh1 {[%clk 00:06:00]} {[%emt 00:00:02]} 99. Rg7
{[%clk 00:04:23]} {[%emt 00:00:01]} 1-0

[Event "Snabb-SM för veteraner, 50+ 2019"]
[Site "Schackcentrum, Vegagatan 20, Gothenburg, Sweden"]
[Date "2019.10.06"]
[Round "9.7"]
[White "Hautajarvi, Jukka"]
[Black "Bergre, Joachim"]
[Result "1/2-1/2"]
[TimeControl "15 minutes + 10 seconds per move from move one"]
[WhiteFideId "1716190"]
[BlackFideId "1704893"]
[WhiteElo "2145"]
[BlackElo "2035"]

1. e4 {[%clk 00:15:19]} {[%emt 00:26:10]} d5 {[%clk 00:15:14]} {[%emt
00:00:08]} 2. Nc3 {[%clk 00:15:20]} {[%emt 00:00:09]} d4 {[%clk 00:15:10]}
{[%emt 00:00:14]} 3. Nce2 {[%clk 00:15:27]} {[%emt 00:00:02]} c5 {[%clk
00:15:13]} {[%emt 00:00:07]} 4. d3 {[%emt 00:00:04]} Nc6 {[%clk 00:15:08]}
{[%emt 00:00:13]} 5. g3 {[%clk 00:15:35]} {[%emt 00:00:11]} e5 {[%clk
00:14:52]} {[%emt 00:00:26]} 6. Bg2 {[%clk 00:15:42]} {[%emt 00:00:02]} Be7
{[%clk 00:14:33]} {[%emt 00:00:29]} 7. Nf3 {[%clk 00:15:40]} {[%emt 00:00:12]}
Nf6 {[%clk 00:14:27]} {[%emt 00:00:16]} 8. O-O {[%clk 00:15:48]} {[%emt
00:00:02]} O-O {[%clk 00:14:35]} {[%emt 00:00:02]} 9. Nh4 {[%clk 00:14:53]}
{[%emt 00:01:05]} Rb8 {[%clk 00:13:39]} {[%emt 00:01:06]} 10. f4 {[%clk
00:14:07]} {[%emt 00:00:57]} b5 {[%clk 00:11:34]} {[%emt 00:02:15]} 11. fxe5
{[%clk 00:14:09]} {[%emt 00:00:08]} Nxe5 {[%clk 00:11:36]} {[%emt 00:00:08]} 12.
Nf5 {[%clk 00:14:17]} {[%emt 00:00:01]} Bxf5 {[%clk 00:11:17]} {[%emt
00:00:30]} 13. Rxf5 {[%clk 00:14:25]} {[%emt 00:00:02]} Nfd7 {[%clk 00:10:53]}
{[%emt 00:00:34]} 14. a4 {[%clk 00:13:00]} {[%emt 00:01:35]} a6 {[%clk
00:10:55]} {[%emt 00:00:07]} 15. axb5 {[%clk 00:12:56]} {[%emt 00:00:14]} axb5
{[%clk 00:11:04]} {[%emt 00:00:02]} 16. Rf1 {[%clk 00:12:50]} {[%emt 00:00:15]}
Nb6 {[%clk 00:09:55]} {[%emt 00:01:20]} 17. Nf4 {[%clk 00:12:39]} {[%emt
00:00:21]} c4 {[%clk 00:08:39]} {[%emt 00:01:26]} 18. Bd2 {[%clk 00:11:41]}
{[%emt 00:01:07]} Bc5 {[%clk 00:08:11]} {[%emt 00:00:38]} 19. Qe2 {[%clk
00:11:18]} {[%emt 00:00:33]} Qd6 {[%clk 00:07:44]} {[%emt 00:00:37]} 20. Ra6
{[%clk 00:10:52]} {[%emt 00:00:37]} Ra8 {[%clk 00:07:50]} {[%emt 00:00:05]} 21.
Rfa1 {[%clk 00:10:56]} {[%emt 00:00:06]} Rxa6 {[%clk 00:07:50]} {[%emt
00:00:10]} 22. Rxa6 {[%clk 00:11:04]} {[%emt 00:00:01]} Ra8 {[%clk 00:07:54]}
{[%emt 00:00:05]} 23. Rxa8+ {[%clk 00:11:10]} {[%emt 00:00:04]} Nxa8 {[%clk
00:08:03]} {[%emt 00:00:02]} 24. Nd5 {[%clk 00:11:13]} {[%emt 00:00:06]} Nb6
{[%clk 00:07:36]} {[%emt 00:00:38]} 25. Nxb6 {[%clk 00:09:49]} {[%emt
00:01:34]} Bxb6 {[%clk 00:07:35]} {[%emt 00:00:12]} 26. Kf1 {[%clk 00:09:32]}
{[%emt 00:00:27]} Qc6 {[%clk 00:06:49]} {[%emt 00:00:56]} 27. Bf4 {[%clk
00:09:09]} {[%emt 00:00:32]} f6 {[%clk 00:06:37]} {[%emt 00:00:23]} 28. Bh3
{[%clk 00:08:26]} {[%emt 00:00:53]} cxd3 {[%clk 00:06:42]} {[%emt 00:00:06]} 29.
cxd3 {[%clk 00:08:35]} {[%emt 00:00:01]} b4 {[%clk 00:06:18]} {[%emt 00:00:34]}
30. b3 {[%clk 00:07:25]} {[%emt 00:01:20]} g6 {[%clk 00:05:58]} {[%emt
00:00:30]} 31. Kg2 {[%clk 00:06:18]} {[%emt 00:01:16]} Kg7 {[%clk 00:04:43]}
{[%emt 00:01:25]} 32. Bxe5 {[%clk 00:05:00]} {[%emt 00:01:28]} fxe5 {[%clk
00:04:48]} {[%emt 00:00:05]} 33. Qd1 {[%clk 00:04:48]} {[%emt 00:00:23]} Bd8
{[%clk 00:04:41]} {[%emt 00:00:17]} 34. Bg4 {[%clk 00:04:48]} {[%emt 00:00:10]}
Bg5 {[%clk 00:04:35]} {[%emt 00:00:16]} 35. h4 {[%clk 00:04:55]} {[%emt
00:00:02]} Be3 {[%clk 00:04:40]} {[%emt 00:00:05]} 36. Kh3 {[%clk 00:03:22]}
{[%emt 00:01:43]} Qc3 {[%clk 00:04:35]} {[%emt 00:00:16]} 37. Be6 {[%clk
00:03:20]} {[%emt 00:00:12]} Qb2 {[%clk 00:04:00]} {[%emt 00:00:44]} 38. Qf3
{[%clk 00:03:17]} {[%emt 00:00:06]} Qf2 {[%clk 00:04:07]} {[%emt 00:00:10]} 39.
Qxf2 {[%clk 00:01:27]} {[%emt 00:02:01]} Bxf2 {[%emt 00:00:02]} 1/2-1/2